[Event "Early-Titled-Tuesday-Blitz-January-30-2024"]
[Site "Chess.com"]
[Date "2024.01.30"]
[Round "8"]
[White "Pastore1978"]
[Black "yaguigor"]
[Result "0-1"]
[WhiteElo "2278"]
[BlackElo "2555"]
[TimeControl "180+1"]
[EndTime "9:30:35 PST"]
[Termination "yaguigor won by resignation"]

1. e4 {[%clk 0:02:30.8]} 1... e5 {[%clk 0:02:43.5]} 2. Nf3 {[%clk 0:02:30.3]}
2... Nc6 {[%clk 0:02:42.5]} 3. d4 {[%clk 0:02:30.6]} 3... exd4 {[%clk
0:02:41.1]} 4. Nxd4 {[%clk 0:02:31.5]} 4... Bc5 {[%clk 0:02:36.5]} 5. Nb3 {[%clk
0:02:31.5]} 5... Bb6 {[%clk 0:02:35.9]} 6. Nc3 {[%clk 0:02:32.1]} 6... Nf6
{[%clk 0:02:35.1]} 7. Qe2 {[%clk 0:02:32.4]} 7... O-O {[%clk 0:02:33.2]} 8. Bg5
{[%clk 0:02:32.7]} 8... h6 {[%clk 0:02:31.7]} 9. Bh4 {[%clk 0:02:32.4]} 9... Nd4
{[%clk 0:02:26.7]} 10. Qd3 {[%clk 0:02:31.6]} 10... Nxb3 {[%clk 0:02:22.9]} 11.
axb3 {[%clk 0:02:32.5]} 11... g5 {[%clk 0:02:04.2]} 12. Bg3 {[%clk 0:02:32.2]}
12... d6 {[%clk 0:02:01.9]} 13. f3 {[%clk 0:02:28.3]} 13... Be6 {[%clk 0:01:56]}
14. h4 {[%clk 0:02:21.2]} 14... Nh5 {[%clk 0:01:51.7]} 15. Bf2 {[%clk
0:02:16.6]} 15... Bxf2+ {[%clk 0:01:49.8]} 16. Kxf2 {[%clk 0:02:17.5]} 16... g4
{[%clk 0:01:49.6]} 17. Ne2 {[%clk 0:02:08.8]} 17... Qf6 {[%clk 0:01:44.8]} 18.
Qc3 {[%clk 0:02:03.8]} 18... gxf3 {[%clk 0:01:32.2]} 19. gxf3 {[%clk 0:01:54.9]}
19... Qxc3 {[%clk 0:01:30.8]} 20. bxc3 {[%clk 0:01:55.8]} 20... f5 {[%clk
0:01:30.6]} 21. Nd4 {[%clk 0:01:43.4]} 21... Bd7 {[%clk 0:01:29.4]} 22. Bc4+
{[%clk 0:01:42.4]} 22... Kh8 {[%clk 0:01:27.3]} 23. Ke3 {[%clk 0:01:37.8]} 23...
a6 {[%clk 0:01:13]} 24. Rag1 {[%clk 0:01:35.4]} 24... Rae8 {[%clk 0:01:09.5]}
25. Rg6 {[%clk 0:01:28.1]} 25... Kh7 {[%clk 0:01:03]} 26. Rhg1 {[%clk
0:01:26.5]} 26... Ng3 {[%clk 0:00:53.2]} 27. R1xg3 {[%clk 0:01:12.5]} 27... f4+
{[%clk 0:00:52.4]} 28. Kf2 {[%clk 0:01:05.3]} 28... fxg3+ {[%clk 0:00:53.3]} 29.
Rxg3 {[%clk 0:01:05.8]} 29... Re7 {[%clk 0:00:53.1]} 30. Bd3 {[%clk 0:00:46.5]}
30... Rg7 {[%clk 0:00:50.3]} 31. e5+ {[%clk 0:00:45.3]} 31... Kh8 {[%clk
0:00:48.1]} 32. e6 {[%clk 0:00:45.4]} 32... Be8 {[%clk 0:00:22.1]} 33. Nf5
{[%clk 0:00:25]} 33... Rxg3 {[%clk 0:00:20.9]} 34. Kxg3 {[%clk 0:00:25.9]} 34...
Bg6 {[%clk 0:00:20]} 35. Nxh6 {[%clk 0:00:18.8]} 35... Bxd3 {[%clk 0:00:18.8]}
36. cxd3 {[%clk 0:00:19.7]} 36... Kg7 {[%clk 0:00:15.1]} 37. Nf7 {[%clk
0:00:16.7]} 37... Kf6 {[%clk 0:00:10.7]} 38. Ng5 {[%clk 0:00:16.8]} 38... Re8
{[%clk 0:00:09.7]} 39. Kf4 {[%clk 0:00:16.5]} 39... a5 {[%clk 0:00:10.1]} 40.
Ke4 {[%clk 0:00:15.4]} 40... b5 {[%clk 0:00:10.3]} 41. d4 {[%clk 0:00:13.5]}
41... a4 {[%clk 0:00:09.5]} 42. bxa4 {[%clk 0:00:14.3]} 42... bxa4 {[%clk
0:00:10.1]} 43. Kd3 {[%clk 0:00:13.4]} 43... a3 {[%clk 0:00:10.1]} 44. Kc2
{[%clk 0:00:13.7]} 44... Rb8 {[%clk 0:00:09.7]} 45. Ne4+ {[%clk 0:00:09.2]}
45... Kxe6 {[%clk 0:00:08.9]} 46. Nd2 {[%clk 0:00:09.9]} 46... a2 {[%clk
0:00:08.6]} 47. Nb3 {[%clk 0:00:05.4]} 47... Rxb3 {[%clk 0:00:08.6]} 0-1

[Event "Early-Titled-Tuesday-Blitz-January-30-2024"]
[Site "Chess.com"]
[Date "2024.01.30"]
[Round "8"]
[White "chipmunknau"]
[Black "yobdc"]
[Result "1-0"]
[WhiteElo "2751"]
[BlackElo "2561"]
[TimeControl "180+1"]
[EndTime "9:30:37 PST"]
[Termination "chipmunknau won by checkmate"]

1. d4 {[%clk 0:03:00.2]} 1... g6 {[%clk 0:02:59.8]} 2. g3 {[%clk 0:02:56]} 2...
Bg7 {[%clk 0:03:00.1]} 3. Bg2 {[%clk 0:02:56.6]} 3... Nf6 {[%clk 0:03:00.6]} 4.
e4 {[%clk 0:02:52.7]} 4... d6 {[%clk 0:03:00.7]} 5. Ne2 {[%clk 0:02:52.7]} 5...
O-O {[%clk 0:03:01]} 6. O-O {[%clk 0:02:52.9]} 6... Nbd7 {[%clk 0:02:59.2]} 7.
c4 {[%clk 0:02:50.7]} 7... e5 {[%clk 0:02:59.5]} 8. Nbc3 {[%clk 0:02:49.9]} 8...
c6 {[%clk 0:02:59.9]} 9. h3 {[%clk 0:02:49.4]} 9... Re8 {[%clk 0:02:59.2]} 10.
d5 {[%clk 0:02:46.6]} 10... cxd5 {[%clk 0:02:53.8]} 11. cxd5 {[%clk 0:02:45.9]}
11... Nc5 {[%clk 0:02:51]} 12. b4 {[%clk 0:02:38.7]} 12... Na6 {[%clk
0:02:50.9]} 13. a3 {[%clk 0:02:37.8]} 13... Bd7 {[%clk 0:02:51.2]} 14. Be3
{[%clk 0:02:36.7]} 14... Rc8 {[%clk 0:02:32.4]} 15. Qd3 {[%clk 0:02:25.6]} 15...
h5 {[%clk 0:02:28.3]} 16. Bxa7 {[%clk 0:02:21.2]} 16... h4 {[%clk 0:02:27.9]}
17. Be3 {[%clk 0:02:14.8]} 17... Nh5 {[%clk 0:02:23.6]} 18. Rfc1 {[%clk
0:02:06.6]} 18... hxg3 {[%clk 0:02:19.3]} 19. fxg3 {[%clk 0:02:07.5]} 19... f5
{[%clk 0:02:07.1]} 20. Qd2 {[%clk 0:01:52.7]} 20... f4 {[%clk 0:01:49.6]} 21.
gxf4 {[%clk 0:01:39.9]} 21... exf4 {[%clk 0:01:50.5]} 22. Nxf4 {[%clk
0:01:40.5]} 22... Nxf4 {[%clk 0:01:47.1]} 23. Bxf4 {[%clk 0:01:41.4]} 23... Qf6
{[%clk 0:01:39.2]} 24. Ne2 {[%clk 0:01:40.9]} 24... Bb5 {[%clk 0:01:33.5]} 25.
Rxc8 {[%clk 0:01:31.3]} 25... Qxa1+ {[%clk 0:01:21.6]} 26. Rc1 {[%clk
0:01:30.3]} 26... Qxa3 {[%clk 0:01:07.6]} 27. Nd4 {[%clk 0:01:28.9]} 27... Bd7
{[%clk 0:00:57.6]} 28. Rb1 {[%clk 0:01:12.8]} 28... Bxh3 {[%clk 0:00:28.8]} 29.
Ne6 {[%clk 0:00:44.2]} 29... Bxe6 {[%clk 0:00:24.8]} 30. dxe6 {[%clk 0:00:44.5]}
30... Rxe6 {[%clk 0:00:20.9]} 31. Qd5 {[%clk 0:00:43.3]} 31... Nc7 {[%clk
0:00:21]} 32. Qc4 {[%clk 0:00:40.4]} 32... Qa7+ {[%clk 0:00:03.8]} 33. Kh1
{[%clk 0:00:40.5]} 33... b5 {[%clk 0:00:04.2]} 34. Qc6 {[%clk 0:00:37]} 34... d5
{[%clk 0:00:03]} 35. Qxc7 {[%clk 0:00:36.1]} 35... Qxc7 {[%clk 0:00:03]} 36.
Bxc7 {[%clk 0:00:37]} 36... dxe4 {[%clk 0:00:03.7]} 37. Re1 {[%clk 0:00:33.9]}
37... Bf8 {[%clk 0:00:04]} 38. Ba5 {[%clk 0:00:28.8]} 38... Kh8 {[%clk
0:00:01.7]} 39. Bxe4 {[%clk 0:00:28]} 39... g5 {[%clk 0:00:02.2]} 40. Kg2 {[%clk
0:00:27.5]} 40... Kg7 {[%clk 0:00:02.6]} 41. Kf3 {[%clk 0:00:26.8]} 41... Rf6+
{[%clk 0:00:02.4]} 42. Ke3 {[%clk 0:00:26.2]} 42... Re6 {[%clk 0:00:02.9]} 43.
Kd3 {[%clk 0:00:26.3]} 43... Rd6+ {[%clk 0:00:02.9]} 44. Kc2 {[%clk 0:00:25.2]}
44... Re6 {[%clk 0:00:03.4]} 45. Re2 {[%clk 0:00:25.4]} 45... g4 {[%clk
0:00:03.5]} 46. Bd3 {[%clk 0:00:21.1]} 46... Rxe2+ {[%clk 0:00:03.2]} 47. Bxe2
{[%clk 0:00:22]} 47... g3 {[%clk 0:00:04]} 48. Bf3 {[%clk 0:00:21.3]} 48... Kf6
{[%clk 0:00:04.5]} 49. Kd3 {[%clk 0:00:18.5]} 49... Ke5 {[%clk 0:00:05]} 50. Ke3
{[%clk 0:00:18.6]} 50... Bh6+ {[%clk 0:00:04.5]} 51. Ke2 {[%clk 0:00:19.1]}
51... Kd4 {[%clk 0:00:05]} 52. Bb6+ {[%clk 0:00:11.1]} 52... Kc4 {[%clk
0:00:05.3]} 53. Bc5 {[%clk 0:00:09.2]} 53... Bg7 {[%clk 0:00:04.9]} 54. Bg4
{[%clk 0:00:07.7]} 54... Bc3 {[%clk 0:00:05.1]} 55. Be6# {[%clk 0:00:08.3]} 1-0

[Event "Early-Titled-Tuesday-Blitz-January-30-2024"]
[Site "Chess.com"]
[Date "2024.01.30"]
[Round "8"]
[White "Sajith_Peiris"]
[Black "m_ezat"]
[Result "0-1"]
[WhiteElo "2270"]
[BlackElo "2475"]
[TimeControl "180+1"]
[EndTime "9:30:37 PST"]
[Termination "m_ezat won by resignation"]

1. e4 {[%clk 0:03:00.9]} 1... e5 {[%clk 0:01:06.8]} 2. Nf3 {[%clk 0:02:58.5]}
2... Nc6 {[%clk 0:01:05.8]} 3. Bb5 {[%clk 0:02:57.8]} 3... Nge7 {[%clk
0:00:59.6]} 4. O-O {[%clk 0:02:55.1]} 4... a6 {[%clk 0:00:56.4]} 5. Ba4 {[%clk
0:02:54.5]} 5... g6 {[%clk 0:00:56.4]} 6. c3 {[%clk 0:02:52.6]} 6... Bg7 {[%clk
0:00:55.9]} 7. d4 {[%clk 0:02:51.7]} 7... exd4 {[%clk 0:00:55.2]} 8. cxd4 {[%clk
0:02:51.5]} 8... b5 {[%clk 0:00:55.5]} 9. Bc2 {[%clk 0:02:50.4]} 9... O-O {[%clk
0:00:55.3]} 10. Nc3 {[%clk 0:02:43.6]} 10... d5 {[%clk 0:00:53.5]} 11. Re1
{[%clk 0:02:37.2]} 11... Bg4 {[%clk 0:00:51.6]} 12. exd5 {[%clk 0:02:25]} 12...
Bxf3 {[%clk 0:00:43.2]} 13. gxf3 {[%clk 0:02:21.5]} 13... Nxd4 {[%clk
0:00:43.1]} 14. Be3 {[%clk 0:02:11.3]} 14... Nef5 {[%clk 0:00:32.5]} 15. Bxf5
{[%clk 0:02:06.2]} 15... Nxf5 {[%clk 0:00:31.5]} 16. Qd3 {[%clk 0:02:05.8]}
16... Qh4 {[%clk 0:00:29.6]} 17. Ne4 {[%clk 0:02:00.1]} 17... h6 {[%clk
0:00:28]} 18. Ng3 {[%clk 0:01:57.8]} 18... Nd6 {[%clk 0:00:26.6]} 19. Rac1
{[%clk 0:01:54.8]} 19... Nc4 {[%clk 0:00:20.7]} 20. b3 {[%clk 0:01:53.3]} 20...
Nxe3 {[%clk 0:00:20.4]} 21. fxe3 {[%clk 0:01:48.4]} 21... Be5 {[%clk 0:00:20.3]}
22. f4 {[%clk 0:01:46.8]} 22... Bd6 {[%clk 0:00:20.4]} 23. Rc6 {[%clk
0:01:42.3]} 23... Rae8 {[%clk 0:00:19.9]} 24. Rf1 {[%clk 0:01:37.9]} 24... h5
{[%clk 0:00:19.2]} 25. Rxa6 {[%clk 0:01:37.2]} 25... Qg4 {[%clk 0:00:19.4]} 26.
Qd1 {[%clk 0:01:34.3]} 26... Qxd1 {[%clk 0:00:18.4]} 27. Rxd1 {[%clk 0:01:34.1]}
27... Rxe3 {[%clk 0:00:19]} 28. f5 {[%clk 0:01:33.2]} 28... h4 {[%clk
0:00:18.5]} 29. Nf1 {[%clk 0:01:31]} 29... Re2 {[%clk 0:00:18.8]} 30. Rd2 {[%clk
0:01:27.6]} 30... Re1 {[%clk 0:00:17.5]} 31. Rg2 {[%clk 0:01:24.8]} 31... h3
{[%clk 0:00:17.1]} 32. Rf2 {[%clk 0:01:24.5]} 32... Bc5 {[%clk 0:00:17.1]} 33.
Rc6 {[%clk 0:01:23.2]} 33... Bxf2+ {[%clk 0:00:16.2]} 34. Kxf2 {[%clk
0:01:23.6]} 34... Rfe8 {[%clk 0:00:17.1]} 35. fxg6 {[%clk 0:01:19.1]} 35...
R8e2+ {[%clk 0:00:16.9]} 36. Kf3 {[%clk 0:01:17.8]} 36... Rxa2 {[%clk
0:00:17.5]} 37. gxf7+ {[%clk 0:01:17.1]} 37... Kxf7 {[%clk 0:00:17.8]} 38. Rxc7+
{[%clk 0:01:17.4]} 38... Kf6 {[%clk 0:00:18.1]} 39. Ng3 {[%clk 0:01:16.8]} 39...
Rxh2 {[%clk 0:00:18.2]} 40. d6 {[%clk 0:01:10.1]} 40... Rd2 {[%clk 0:00:16.6]}
41. d7 {[%clk 0:00:52.1]} 41... h2 {[%clk 0:00:12.2]} 42. Rc6+ {[%clk
0:00:39.1]} 42... Kg7 {[%clk 0:00:12]} 43. Nf5+ {[%clk 0:00:31.8]} 43... Kf7
{[%clk 0:00:12.3]} 44. Nh6+ {[%clk 0:00:21.6]} 44... Ke7 {[%clk 0:00:12.4]} 45.
Nf5+ {[%clk 0:00:07.5]} 45... Kxd7 {[%clk 0:00:10.7]} 0-1

[Event "Early-Titled-Tuesday-Blitz-January-30-2024"]
[Site "Chess.com"]
[Date "2024.01.30"]
[Round "8"]
[White "gahryman"]
[Black "mbojan"]
[Result "1/2-1/2"]
[WhiteElo "2672"]
[BlackElo "2870"]
[TimeControl "180+1"]
[EndTime "9:30:38 PST"]
[Termination "Game drawn by repetition"]

1. e4 {[%clk 0:03:00.9]} 1... a6 {[%clk 0:02:59.4]} 2. d4 {[%clk 0:02:59.1]}
2... e6 {[%clk 0:02:59.9]} 3. Nf3 {[%clk 0:02:58.2]} 3... d5 {[%clk 0:03:00.3]}
4. e5 {[%clk 0:02:56.6]} 4... c5 {[%clk 0:03:00.4]} 5. Bd3 {[%clk 0:02:57.4]}
5... cxd4 {[%clk 0:03:00.3]} 6. O-O {[%clk 0:02:57.6]} 6... Nc6 {[%clk
0:03:00.3]} 7. Nbd2 {[%clk 0:02:57.9]} 7... Qc7 {[%clk 0:02:58]} 8. Re1 {[%clk
0:02:56.8]} 8... f6 {[%clk 0:02:46.7]} 9. Nb3 {[%clk 0:02:36.6]} 9... fxe5
{[%clk 0:02:46.8]} 10. Nxe5 {[%clk 0:02:36.8]} 10... Nxe5 {[%clk 0:02:44.9]} 11.
Bf4 {[%clk 0:02:37.1]} 11... Bd6 {[%clk 0:02:21.2]} 12. Bxe5 {[%clk 0:02:36.4]}
12... Bxe5 {[%clk 0:02:19.5]} 13. Qh5+ {[%clk 0:02:36.3]} 13... g6 {[%clk
0:02:04.7]} 14. Qxe5 {[%clk 0:02:35.9]} 14... Qxe5 {[%clk 0:02:05.1]} 15. Rxe5
{[%clk 0:02:36.7]} 15... Nf6 {[%clk 0:01:56.7]} 16. Rae1 {[%clk 0:02:36.4]}
16... Kf7 {[%clk 0:01:57.2]} 17. Nxd4 {[%clk 0:02:35.7]} 17... Re8 {[%clk
0:01:57.9]} 18. Nf3 {[%clk 0:02:26.9]} 18... h6 {[%clk 0:01:49.9]} 19. R5e2
{[%clk 0:02:22.7]} 19... g5 {[%clk 0:01:45.1]} 20. Ne5+ {[%clk 0:02:20.3]} 20...
Kg7 {[%clk 0:01:45.5]} 21. f3 {[%clk 0:01:59.2]} 21... b6 {[%clk 0:01:42.9]} 22.
Kf2 {[%clk 0:01:57.2]} 22... Ra7 {[%clk 0:01:39.1]} 23. h4 {[%clk 0:01:57.3]}
23... gxh4 {[%clk 0:01:08]} 24. Rh1 {[%clk 0:01:56.6]} 24... Nd7 {[%clk
0:01:08.4]} 25. Rxh4 {[%clk 0:01:52.3]} 25... Nxe5 {[%clk 0:00:59]} 26. Rxe5
{[%clk 0:01:53.2]} 26... Rf7 {[%clk 0:00:55.5]} 27. Rg4+ {[%clk 0:01:49.7]}
27... Kf6 {[%clk 0:00:55.2]} 28. f4 {[%clk 0:01:47.1]} 28... Rg7 {[%clk
0:00:55.3]} 29. Rh4 {[%clk 0:01:40.8]} 29... Rh8 {[%clk 0:00:45.1]} 30. Reh5
{[%clk 0:01:40.6]} 30... Ke7 {[%clk 0:00:40.5]} 31. Rxh6 {[%clk 0:01:40.5]}
31... Rxh6 {[%clk 0:00:41.4]} 32. Rxh6 {[%clk 0:01:40.8]} 32... Kd6 {[%clk
0:00:42.1]} 33. Kf3 {[%clk 0:01:33.3]} 33... Kc5 {[%clk 0:00:38.5]} 34. Rh7
{[%clk 0:01:25.6]} 34... Rg8 {[%clk 0:00:35.6]} 35. g4 {[%clk 0:01:25.1]} 35...
e5 {[%clk 0:00:35.9]} 36. Bf5 {[%clk 0:01:17.8]} 36... e4+ {[%clk 0:00:31]} 37.
Ke3 {[%clk 0:00:53]} 37... Bxf5 {[%clk 0:00:30.9]} 38. b4+ {[%clk 0:00:52.9]}
38... Kxb4 {[%clk 0:00:13.9]} 39. gxf5 {[%clk 0:00:52.9]} 39... Rf8 {[%clk
0:00:14.6]} 40. Rh6 {[%clk 0:00:36]} 40... Kc5 {[%clk 0:00:14.4]} 41. f6 {[%clk
0:00:35.9]} 41... Kd6 {[%clk 0:00:09.3]} 42. f7+ {[%clk 0:00:32.1]} 42... Ke7
{[%clk 0:00:04.4]} 43. Rxb6 {[%clk 0:00:31.9]} 43... Kxf7 {[%clk 0:00:03.4]} 44.
Kd4 {[%clk 0:00:28.7]} 44... Rc8 {[%clk 0:00:03]} 45. c3 {[%clk 0:00:14.6]}
45... Rc4+ {[%clk 0:00:01.3]} 46. Kxd5 {[%clk 0:00:14.7]} 46... Rxc3 {[%clk
0:00:02.2]} 47. Kxe4 {[%clk 0:00:14.7]} 47... Ra3 {[%clk 0:00:03.1]} 48. Rb2
{[%clk 0:00:10.4]} 48... Kf6 {[%clk 0:00:03.4]} 49. Rb6+ {[%clk 0:00:10.1]}
49... Kf7 {[%clk 0:00:03.9]} 50. Rb2 {[%clk 0:00:10]} 50... Kf6 {[%clk
0:00:04.4]} 51. Rb6+ {[%clk 0:00:08.3]} 51... Kf7 {[%clk 0:00:04.9]} 1/2-1/2

[Event "Early-Titled-Tuesday-Blitz-January-30-2024"]
[Site "Chess.com"]
[Date "2024.01.30"]
[Round "8"]
[White "CristianS27"]
[Black "ChessQueen"]
[Result "0-1"]
[WhiteElo "2557"]
[BlackElo "2741"]
[TimeControl "180+1"]
[EndTime "9:30:42 PST"]
[Termination "ChessQueen won by resignation"]

1. e4 {[%clk 0:03:00.9]} 1... c6 {[%clk 0:03:00.1]} 2. d4 {[%clk 0:02:58]} 2...
d5 {[%clk 0:03:00]} 3. exd5 {[%clk 0:02:58.9]} 3... cxd5 {[%clk 0:03:00]} 4. c4
{[%clk 0:02:59.8]} 4... Nf6 {[%clk 0:02:59.4]} 5. Nc3 {[%clk 0:03:00.7]} 5...
Nc6 {[%clk 0:02:57.4]} 6. Bg5 {[%clk 0:03:00.2]} 6... Be6 {[%clk 0:02:50]} 7.
Be2 {[%clk 0:02:59.9]} 7... h6 {[%clk 0:02:24]} 8. Bxf6 {[%clk 0:02:59.4]} 8...
exf6 {[%clk 0:02:24.9]} 9. Bf3 {[%clk 0:03:00.2]} 9... Bb4 {[%clk 0:02:19.7]}
10. Ne2 {[%clk 0:02:47.6]} 10... O-O {[%clk 0:02:10.7]} 11. O-O {[%clk
0:02:44.7]} 11... Ne7 {[%clk 0:02:06.5]} 12. c5 {[%clk 0:02:29.1]} 12... Re8
{[%clk 0:01:48]} 13. a3 {[%clk 0:02:28.9]} 13... Ba5 {[%clk 0:01:46.9]} 14. b4
{[%clk 0:02:28.4]} 14... Bc7 {[%clk 0:01:46.9]} 15. Qd2 {[%clk 0:02:24.1]} 15...
Ng6 {[%clk 0:01:43.6]} 16. g3 {[%clk 0:02:21.1]} 16... Qd7 {[%clk 0:01:42.2]}
17. h4 {[%clk 0:02:20.5]} 17... Rad8 {[%clk 0:01:37.9]} 18. Rfe1 {[%clk
0:02:20.4]} 18... Bb8 {[%clk 0:01:23.1]} 19. h5 {[%clk 0:02:20.4]} 19... Ne7
{[%clk 0:01:11.2]} 20. Nf4 {[%clk 0:02:20.8]} 20... Bg4 {[%clk 0:01:09.5]} 21.
Bxd5 {[%clk 0:01:34.7]} 21... Nxd5 {[%clk 0:01:03.7]} 22. Rxe8+ {[%clk
0:01:29.9]} 22... Rxe8 {[%clk 0:01:01.3]} 23. Ncxd5 {[%clk 0:01:24.3]} 23... Bf3
{[%clk 0:00:41.3]} 24. Re1 {[%clk 0:01:16.3]} 24... Rxe1+ {[%clk 0:00:30.8]} 25.
Qxe1 {[%clk 0:01:17.2]} 25... Bxf4 {[%clk 0:00:30.9]} 26. Nxf4 {[%clk
0:01:08.8]} 26... Qxd4 {[%clk 0:00:31]} 27. Kh2 {[%clk 0:00:41.9]} 27... Qe5
{[%clk 0:00:31]} 28. Qxe5 {[%clk 0:00:35.5]} 28... fxe5 {[%clk 0:00:30.7]} 29.
Nd3 {[%clk 0:00:36.4]} 29... f6 {[%clk 0:00:30.7]} 30. b5 {[%clk 0:00:20.6]}
30... Kf7 {[%clk 0:00:28.7]} 31. Nb4 {[%clk 0:00:17.2]} 31... Ke6 {[%clk
0:00:27.6]} 32. Kh3 {[%clk 0:00:13.6]} 32... Bxh5 {[%clk 0:00:24.5]} 33. c6
{[%clk 0:00:14.2]} 33... b6 {[%clk 0:00:23.3]} 34. g4 {[%clk 0:00:13]} 34... Be8
{[%clk 0:00:22.5]} 35. Kg3 {[%clk 0:00:13.2]} 35... Kd6 {[%clk 0:00:21.9]} 36.
Kf3 {[%clk 0:00:11.7]} 36... g6 {[%clk 0:00:20.4]} 37. Ke4 {[%clk 0:00:11.1]}
37... Bf7 {[%clk 0:00:20.9]} 38. Na6 {[%clk 0:00:10.3]} 38... Be6 {[%clk
0:00:20.3]} 39. f3 {[%clk 0:00:08.7]} 39... f5+ {[%clk 0:00:20]} 40. gxf5 {[%clk
0:00:09.6]} 40... gxf5+ {[%clk 0:00:20.7]} 41. Ke3 {[%clk 0:00:10.2]} 41... h5
{[%clk 0:00:20.6]} 42. f4 {[%clk 0:00:09.6]} 42... e4 {[%clk 0:00:18.1]} 43. Nb4
{[%clk 0:00:09.5]} 43... h4 {[%clk 0:00:18.2]} 44. Nc2 {[%clk 0:00:08.6]} 44...
Bc8 {[%clk 0:00:17]} 45. Nd4 {[%clk 0:00:07.2]} 45... Kc5 {[%clk 0:00:17.3]} 46.
a4 {[%clk 0:00:04.9]} 46... Kb4 {[%clk 0:00:16.7]} 47. c7 {[%clk 0:00:04]} 47...
Kxa4 {[%clk 0:00:11.1]} 48. Nc6 {[%clk 0:00:04.4]} 48... h3 {[%clk 0:00:11.4]}
49. Kf2 {[%clk 0:00:04.2]} 49... e3+ {[%clk 0:00:11.2]} 50. Kxe3 {[%clk
0:00:01.8]} 50... h2 {[%clk 0:00:11.6]} 51. Nxa7 {[%clk 0:00:02.7]} 51... Bd7
{[%clk 0:00:11.7]} 52. c8=Q {[%clk 0:00:03.6]} 52... Bxc8 {[%clk 0:00:12]} 53.
Nxc8 {[%clk 0:00:04.5]} 53... Kxb5 {[%clk 0:00:11.9]} 54. Nd6+ {[%clk
0:00:04.7]} 54... Kc6 {[%clk 0:00:11.9]} 55. Nxf5 {[%clk 0:00:05]} 55... h1=Q
{[%clk 0:00:12.4]} 56. Nd4+ {[%clk 0:00:05.9]} 56... Kc5 {[%clk 0:00:12]} 0-1

[Event "Early-Titled-Tuesday-Blitz-January-30-2024"]
[Site "Chess.com"]
[Date "2024.01.30"]
[Round "8"]
[White "manitodeplomo"]
[Black "deribas12345"]
[Result "1-0"]
[WhiteElo "2678"]
[BlackElo "2505"]
[TimeControl "180+1"]
[EndTime "9:30:47 PST"]
[Termination "manitodeplomo won by resignation"]

1. d4 {[%clk 0:02:50.6]} 1... Nf6 {[%clk 0:02:59.7]} 2. c4 {[%clk 0:02:49.6]}
2... c5 {[%clk 0:02:59.9]} 3. d5 {[%clk 0:02:48.5]} 3... b5 {[%clk 0:02:58.7]}
4. Nf3 {[%clk 0:02:48.8]} 4... Bb7 {[%clk 0:02:58.2]} 5. Nbd2 {[%clk 0:02:43.3]}
5... e6 {[%clk 0:02:48.5]} 6. e4 {[%clk 0:02:38.5]} 6... bxc4 {[%clk 0:02:37.9]}
7. dxe6 {[%clk 0:02:35]} 7... dxe6 {[%clk 0:02:34.1]} 8. e5 {[%clk 0:02:34.5]}
8... Nd5 {[%clk 0:02:19.3]} 9. Nxc4 {[%clk 0:02:24.7]} 9... Be7 {[%clk
0:02:16.5]} 10. a3 {[%clk 0:02:24.8]} 10... O-O {[%clk 0:02:13.7]} 11. Bd3
{[%clk 0:02:24.6]} 11... Nc6 {[%clk 0:02:11.3]} 12. h4 {[%clk 0:02:24.4]} 12...
f5 {[%clk 0:01:49.8]} 13. exf6 {[%clk 0:02:09.1]} 13... Bxf6 {[%clk 0:01:50]}
14. Bxh7+ {[%clk 0:02:01.2]} 14... Kxh7 {[%clk 0:01:35.7]} 15. Ng5+ {[%clk
0:02:00.3]} 15... Kg8 {[%clk 0:01:03.2]} 16. Qh5 {[%clk 0:01:58.4]} 16... Bxg5
{[%clk 0:01:03.4]} 17. hxg5 {[%clk 0:01:57.7]} 17... Rf5 {[%clk 0:00:49.9]} 18.
Qh7+ {[%clk 0:01:43.9]} 18... Kf8 {[%clk 0:00:43.2]} 19. Qg6 {[%clk 0:00:32.9]}
19... Nde7 {[%clk 0:00:28.4]} 20. Rh8+ {[%clk 0:00:27.3]} 20... Ng8 {[%clk
0:00:28.4]} 21. Qxe6 {[%clk 0:00:27.6]} 21... Ne7 {[%clk 0:00:28.8]} 22. Ne5
{[%clk 0:00:16.2]} 22... Rxe5+ {[%clk 0:00:27.2]} 23. Qxe5 {[%clk 0:00:15.3]}
23... Qd4 {[%clk 0:00:23]} 24. Qxd4 {[%clk 0:00:13.1]} 24... cxd4 {[%clk
0:00:23.3]} 25. Bd2 {[%clk 0:00:13.2]} 25... Kf7 {[%clk 0:00:18.7]} 26. f3
{[%clk 0:00:11.3]} 26... Re8 {[%clk 0:00:16.4]} 27. Kf2 {[%clk 0:00:09.7]} 27...
Nd5 {[%clk 0:00:16.7]} 28. Rc1 {[%clk 0:00:06.9]} 28... Nge7 {[%clk 0:00:16.8]}
29. Rxe8 {[%clk 0:00:05.8]} 29... Kxe8 {[%clk 0:00:17.7]} 30. Rc4 {[%clk
0:00:05.7]} 30... d3 {[%clk 0:00:17.1]} 31. Rd4 {[%clk 0:00:06.1]} 31... Ba6
{[%clk 0:00:17.4]} 32. Bb4 {[%clk 0:00:04.2]} 32... Kf7 {[%clk 0:00:15.5]} 33.
Bxe7 {[%clk 0:00:04]} 33... Nxe7 {[%clk 0:00:16.4]} 34. Ra4 {[%clk 0:00:03.7]}
34... Bb5 {[%clk 0:00:14.8]} 35. Rb4 {[%clk 0:00:03.4]} 35... a6 {[%clk
0:00:12.3]} 36. a4 {[%clk 0:00:03.8]} 36... Nc6 {[%clk 0:00:12.1]} 37. Rf4+
{[%clk 0:00:03.9]} 37... Ke6 {[%clk 0:00:11.4]} 38. axb5 {[%clk 0:00:04.8]}
38... axb5 {[%clk 0:00:11.9]} 39. Ke3 {[%clk 0:00:04.8]} 39... Ne5 {[%clk
0:00:11.7]} 40. Re4 {[%clk 0:00:04.9]} 40... Kd5 {[%clk 0:00:12.3]} 41. Rxe5+
{[%clk 0:00:05]} 41... Kxe5 {[%clk 0:00:12.7]} 42. Kxd3 {[%clk 0:00:05.5]} 42...
Kf4 {[%clk 0:00:13.2]} 43. Ke2 {[%clk 0:00:05.2]} 43... Kxg5 {[%clk 0:00:13.1]}
44. Ke3 {[%clk 0:00:05.2]} 44... Kh4 {[%clk 0:00:13.4]} 45. Kf2 {[%clk
0:00:05.3]} 45... g6 {[%clk 0:00:12.5]} 46. b4 {[%clk 0:00:04.8]} 46... Kg5
{[%clk 0:00:12.6]} 47. g3 {[%clk 0:00:04.8]} 47... Kf5 {[%clk 0:00:13]} 48. Ke3
{[%clk 0:00:05.7]} 48... Ke5 {[%clk 0:00:13.5]} 49. f4+ {[%clk 0:00:05.6]} 49...
Kd5 {[%clk 0:00:13.9]} 50. g4 {[%clk 0:00:05.3]} 50... Kc4 {[%clk 0:00:14.1]}
51. f5 {[%clk 0:00:05.7]} 51... gxf5 {[%clk 0:00:14.6]} 52. g5 {[%clk 0:00:06]}
52... Kxb4 {[%clk 0:00:15.5]} 53. g6 {[%clk 0:00:05.9]} 53... Ka3 {[%clk
0:00:16]} 54. g7 {[%clk 0:00:06.1]} 54... b4 {[%clk 0:00:16.9]} 55. g8=Q {[%clk
0:00:06.5]} 55... b3 {[%clk 0:00:17.8]} 56. Kd2 {[%clk 0:00:06]} 56... b2 {[%clk
0:00:17.1]} 57. Kc2 {[%clk 0:00:05.6]} 1-0